fUSD/lending_fUSD_20250111
["ID","MTS","AMOUNT","RATE_DAILY","PERIOD"]
[348566213,1736621449084,-500.0,0.00010712,2]
[348566214,1736621449093,-500.0,0.00010712,2]
[348566215,1736621449103,-500.0,0.00010712,2]
[348566216,1736621449112,-500.0,0.00010712,2]
[348566217,1736621449121,-526.91950581,0.00010712,2]
[348566218,1736621449131,-2156.01,0.00010712,2]
[348566219,1736621449140,-500.0,0.00010712,2]
[348566220,1736621449149,-500.0,0.00010712,2]
[348566221,1736621449159,-500.0,0.00010712,2]
[348566222,1736621449168,-500.0,0.00010712,2]
[348566223,1736621449178,-500.0,0.00010712,2]
[348566224,1736621449187,-500.0,0.00010712,2]
[348566225,1736621449197,-500.0,0.00010712,2]
[348566226,1736621449207,-500.0,0.00010712,2]
[348566227,1736621449217,-500.0,0.00010712,2]
[348566228,1736621449227,-500.0,0.00010712,2]
[348566229,1736621449236,-348.01,0.00010712,2]
[348566230,1736621449245,-500.0,0.00010712,2]
[348566231,1736621449254,-500.0,0.00010712,2]
[348566232,1736621449263,-500.0,0.00010712,2]
[348566233,1736621449272,-500.0,0.00010712,2]
[348566234,1736621449282,-500.0,0.00010712,2]
[348566235,1736621449291,-500.0,0.00010712,2]
[348566236,1736621449300,-500.0,0.00010712,2]
[348566237,1736621449309,-500.0,0.00010712,2]
[348566238,1736621449319,-534.03,0.00010712,2]
[348566239,1736621449329,-500.0,0.00010712,2]
[348566240,1736621449339,-500.0,0.00010712,2]
[348566241,1736621449348,-500.0,0.00010712,2]
[348566242,1736621449357,-582.55,0.00010712,2]
[348566243,1736621449366,-500.0,0.00010712,2]
[348566244,1736621449376,-500.0,0.00010712,2]
[348566245,1736621449385,-500.0,0.00010712,2]
[348566246,1736621449394,-500.0,0.00010712,2]
[348566247,1736621449403,-500.0,0.00010712,2]
[348566248,1736621449413,-500.0,0.00010712,2]
[348566249,1736621449423,-500.0,0.00010712,2]
[348566250,1736621449432,-500.0,0.00010712,2]
[348566251,1736621449442,-500.0,0.00010712,2]
[348566252,1736621449453,-660.95,0.00010712,2]
[348566253,1736621449463,-223.45,0.00010712,2]
[348566254,1736621449473,-500.0,0.00010712,2]
[348566255,1736621449483,-514.46,0.00010712,2]
[348566256,1736621449493,-500.0,0.00010712,2]
[348566257,1736621449502,-500.0,0.00010712,2]
[348566258,1736621449511,-851.4,0.00010712,2]
[348566259,1736621449521,-915.78,0.00010712,2]
[348566260,1736621449531,-1015.76,0.00010712,2]
[348566261,1736621449540,-955.24,0.00010713,2]
[348566262,1736621449550,-1983.29,0.00010713,2]
[348566263,1736621449559,-1036.51,0.00010713,2]
[348566264,1736621449569,-1442.19,0.00010713,2]
[348566265,1736621449578,-764.7,0.00010713,2]
[348566266,1736621449588,-972.09,0.00010713,2]
[348566267,1736621449597,-1327.99,0.00010713,2]
[348566268,1736621449607,-500.0,0.00010713,2]
[348566269,1736621449617,-516.86,0.00010713,2]
[348566270,1736621449627,-666.27,0.00010714,2]
[348566271,1736621449636,-652.94,0.00010714,2]
[348566272,1736621449646,-500.0,0.00010715,2]
[348566273,1736621449655,-554.02,0.00010715,2]
[348566274,1736621449665,-500.0,0.00010715,2]
[348566275,1736621449675,-1015.29,0.00010715,2]
[348566276,1736621449684,-626.6,0.00010715,2]
[348566277,1736621449694,-1565.13,0.00010715,2]
[348566278,1736621449703,-858.25,0.00010715,2]
[348566279,1736621449713,-1345.22,0.00010715,2]
[348566280,1736621449724,-1795.38,0.00010715,2]
[348566281,1736621449736,-6450.46,0.00010715,2]
[348566282,1736621449746,-1396.58,0.00010715,2]
[348566283,1736621449755,-500.0,0.00010715,2]
[348566284,1736621449765,-500.0,0.00010715,2]
[348566285,1736621449776,-1462.1,0.00010715,2]
[348566286,1736621449786,-682.76,0.00010715,2]
[348566287,1736621449795,-500.0,0.00010715,2]
[348566288,1736621449806,-1096.56,0.00010715,2]
[348566289,1736621449816,-500.0,0.00010715,2]
[348566290,1736621449826,-1358.89,0.00010715,2]
[348566291,1736621449835,-500.0,0.00010715,2]
[348566292,1736621449845,-1047.52,0.00010715,2]
[348566293,1736621449854,-1000.0,0.00010715,2]
[348566294,1736621449864,-155.996627,0.00010718,2]
[348566295,1736621449873,-151.423521,0.00010718,2]
[348566296,1736621449883,-500.0,0.00010721,2]
[348566297,1736621449893,-281.5,0.000108,2]
[348566298,1736621449903,-151.423521,0.00010821,2]
[348566299,1736621449914,-165.74284264,0.000109,2]
[348566300,1736621449923,-206.87842556,0.000109,2]
[348566301,1736621449933,-156.14,0.00010937,2]
[348566302,1736621449942,-152.14,0.0001094,2]
[348566303,1736621449951,-500.0,0.00010958,2]
[348566304,1736621449962,-150.0,0.00010959,2]
[348566305,1736621449971,-2100.0,0.0001096,2]
[348566306,1736621449981,-600.0,0.0001096,2]
[348566307,1736621449991,-10926.0,0.00010962,2]
[348566308,1736621450000,-155.996627,0.00010981,2]
[348566309,1736621450011,-155.726861,0.00010981,2]
[348566310,1736621450020,-151.423521,0.00010984,2]
[348566311,1736621450030,-1718.37,0.00010984,2]
[348566312,1736621450040,-2818.84,0.00010984,2]
[348566313,1736621450049,-1639.4,0.00010984,2]
[348566314,1736621450059,-500.0,0.00010984,2]
[348566315,1736621450068,-736.0,0.00010984,2]
[348566316,1736621450078,-2029.26,0.00010984,2]
[348566317,1736621450088,-724.79,0.00010984,2]
[348566318,1736621450098,-978.23,0.00010984,2]
[348566319,1736621450107,-532.82,0.00010984,2]
[348566320,1736621450117,-500.0,0.00010984,2]
[348566321,1736621450126,-577.29,0.00010984,2]
[348566322,1736621450136,-500.0,0.00010984,2]
[348566323,1736621450145,-1827.43,0.00010984,2]
[348566324,1736621450155,-500.0,0.00010984,2]
[348566325,1736621450164,-500.0,0.00010984,2]
[348566326,1736621450174,-1230.85,0.00010984,2]
[348566327,1736621450184,-500.0,0.00010985,2]
[348566328,1736621450193,-500.0,0.00010985,2]
[348566329,1736621450203,-547.0,0.00010985,2]
[348566330,1736621450213,-500.0,0.00010985,2]
[348566331,1736621450222,-500.0,0.00010985,2]
[348566332,1736621450232,-500.0,0.00010985,2]
[348566333,1736621450242,-164.0,0.00010985,2]
[348566334,1736621450251,-500.0,0.00010985,2]
[348566335,1736621450262,-500.0,0.00010985,2]
[348566336,1736621450273,-500.0,0.00010985,2]
[348566337,1736621450283,-500.0,0.00010985,2]
[348566338,1736621450294,-500.0,0.00010985,2]
[348566339,1736621450304,-593.18,0.00010985,2]
[348566340,1736621450314,-500.0,0.00010985,2]
[348566341,1736621450323,-500.0,0.00010985,2]
[348566342,1736621450334,-532.45,0.00010985,2]
[348566343,1736621450346,-578.67,0.00010985,2]
[348566344,1736621450356,-500.0,0.00010985,2]
[348566345,1736621450368,-594.42,0.00010985,2]
[348566346,1736621450379,-500.0,0.00010985,2]
[348566347,1736621450391,-500.0,0.00010985,2]
[348566348,1736621450402,-500.0,0.00010985,2]
[348566349,1736621450413,-500.0,0.00010985,2]
[348566350,1736621450423,-519.49,0.00010985,2]
[348566351,1736621450433,-500.0,0.00010985,2]
[348566352,1736621450443,-500.0,0.00010985,2]
[348566353,1736621450453,-500.0,0.00010985,2]
[348566354,1736621450463,-500.0,0.00010985,2]
[348566355,1736621450472,-500.0,0.00010985,2]
[348566356,1736621450481,-500.0,0.00010985,2]
[348566357,1736621450491,-530.84,0.00010985,2]
[348566358,1736621450500,-500.0,0.00010985,2]
[348566359,1736621450509,-500.0,0.00010985,2]
[348566360,1736621450519,-500.0,0.00010985,2]
[348566361,1736621450529,-500.0,0.00010985,2]
[348566362,1736621450538,-500.0,0.00010985,2]
[348566363,1736621450548,-204.14,0.00010985,2]
[348566364,1736621450558,-500.0,0.00010985,2]
[348566365,1736621450568,-500.0,0.00010985,2]
[348566366,1736621450577,-500.0,0.00010985,2]
[348566367,1736621450587,-500.0,0.00010985,2]
[348566368,1736621450597,-500.0,0.00010985,2]
[348566369,1736621450607,-641.17,0.00010985,2]
[348566370,1736621450618,-500.0,0.00010985,2]
[348566371,1736621450627,-500.0,0.00010985,2]
[348566372,1736621450638,-500.0,0.00010985,2]
[348566373,1736621450648,-389.78412024,0.00010985,2]
[348566374,1736621450658,-895.48,0.00010985,2]
[348566375,1736621450668,-500.0,0.00010985,2]
[348566376,1736621450678,-500.0,0.00010985,2]
[348566377,1736621450688,-1450.86,0.00010985,2]
[348566378,1736621450698,-4290.62,0.00010985,2]
[348566379,1736621450709,-500.0,0.00010985,2]
[348566380,1736621450718,-995.86,0.00010985,2]
[348566381,1736621450731,-500.0,0.00010985,2]
[348566382,1736621450740,-500.0,0.00010985,2]
[348566383,1736621450750,-500.0,0.00010985,2]
[348566384,1736621450759,-500.0,0.00010985,2]
[348566385,1736621450771,-783.11,0.00010985,2]
[348566386,1736621450781,-500.0,0.00010985,2]
[348566387,1736621450791,-2256.78,0.00010985,2]
[348566388,1736621450801,-500.0,0.00010985,2]
[348566389,1736621450812,-2102.59,0.00010985,2]
[348566390,1736621450822,-500.0,0.00010985,2]
[348566391,1736621450832,-500.0,0.00010985,2]
[348566392,1736621450842,-500.0,0.00010985,2]
[348566393,1736621450852,-500.0,0.00010985,2]
[348566394,1736621450863,-500.0,0.00010985,2]
[348566395,1736621450874,-500.0,0.00010985,2]
[348566396,1736621450884,-500.0,0.00010985,2]
[348566397,1736621450897,-2192.98,0.00010985,2]
[348566398,1736621450907,-500.0,0.00010985,2]
[348566399,1736621450916,-1538.91,0.00010985,2]
[348566400,1736621450926,-753.15,0.00010985,2]
[348566401,1736621450937,-500.0,0.00010985,2]
[348566402,1736621450947,-500.0,0.00010985,2]
[348566403,1736621450958,-500.0,0.00010985,2]
[348566404,1736621450968,-500.0,0.00010985,2]
[348566405,1736621450978,-609.52591518,0.00010985,2]
[348566406,1736621450989,-500.0,0.00010985,2]
[348566407,1736621450999,-500.0,0.00010985,2]
[348566408,1736621451009,-1520.67,0.00010985,2]
[348566409,1736621451020,-500.0,0.00010985,2]
[348566410,1736621451031,-500.0,0.00010985,2]
[348566411,1736621451042,-500.0,0.00010985,2]
[348566412,1736621451053,-1088.08,0.00010985,2]
[348566413,1736621451063,-500.0,0.00010985,2]
[348566414,1736621451073,-500.0,0.00010985,2]
[348566415,1736621451083,-500.0,0.00010985,2]
[348566416,1736621451093,-500.0,0.00010985,2]
[348566417,1736621451102,-500.0,0.00010985,2]
[348566418,1736621451112,-500.0,0.00010985,2]
[348566419,1736621451122,-500.0,0.00010985,2]
[348566420,1736621451131,-500.0,0.00010985,2]
[348566421,1736621451140,-813.04,0.00010985,2]
[348566422,1736621451150,-500.0,0.00010985,2]
[348566423,1736621451160,-500.0,0.00010985,2]
[348566424,1736621451170,-500.0,0.00010985,2]
[348566425,1736621451179,-500.0,0.00010985,2]
[348566426,1736621451190,-500.0,0.00010985,2]
[348566427,1736621451200,-500.0,0.00010985,2]
[348566428,1736621451210,-500.0,0.00010985,2]
[348566429,1736621451220,-500.0,0.00010985,2]
[348566430,1736621451229,-500.0,0.00010985,2]
[348566431,1736621451239,-500.0,0.00010985,2]
[348566432,1736621451250,-500.0,0.00010985,2]
[348566433,1736621451259,-500.0,0.00010985,2]
[348566434,1736621451269,-500.0,0.00010985,2]
[348566435,1736621451279,-500.0,0.00010985,2]
[348566436,1736621451288,-500.0,0.00010985,2]
[348566437,1736621451298,-500.0,0.00010985,2]
[348566438,1736621451308,-500.0,0.00010985,2]
[348566439,1736621451319,-500.0,0.00010985,2]
[348566440,1736621451329,-500.0,0.00010985,2]
[348566441,1736621451342,-500.0,0.00010985,2]
[348566442,1736621451352,-500.0,0.00010985,2]
[348566443,1736621451362,-500.0,0.00010986,2]
[348566444,1736621451372,-636.08,0.00010986,2]
[348566445,1736621451382,-853.25,0.00010986,2]
[348566446,1736621451392,-1981.72,0.00010986,2]
[348566447,1736621451402,-583.2,0.00010986,2]
[348566448,1736621451412,-500.0,0.00010986,2]
[348566449,1736621451421,-2219.66,0.00010986,2]
[348566450,1736621451431,-529.66,0.00010986,2]
[348566451,1736621451441,-500.0,0.00010986,2]
[348566452,1736621451452,-715.56,0.00010986,2]
[348566453,1736621451462,-908.13,0.00010986,2]
[348566454,1736621451472,-1227.93,0.00010986,2]
[348566455,1736621451482,-765.37,0.00010986,2]
[348566456,1736621451492,-500.0,0.00010986,2]
[348566457,1736621451501,-500.0,0.00010986,2]
[348566458,1736621451511,-500.0,0.00010986,2]
[348566459,1736621451521,-500.0,0.00010986,2]
[348566460,1736621451531,-1449.76,0.00010986,2]
[348566461,1736621451541,-500.0,0.00010986,2]
[348566462,1736621451552,-500.0,0.00010986,2]
[348566463,1736621451562,-500.0,0.00010986,2]
[348566464,1736621451573,-500.0,0.00010986,2]
[348566465,1736621451582,-500.0,0.00010986,2]
[348566466,1736621451592,-500.0,0.00010986,2]
[348566467,1736621451601,-500.0,0.00010986,2]
[348566468,1736621451611,-548.88,0.00010986,2]
[348566469,1736621451621,-1240.86,0.00010986,2]
[348566470,1736621451632,-500.0,0.00010986,2]
[348566471,1736621451642,-500.0,0.00010986,2]
[348566472,1736621451651,-551.08,0.00010986,2]
[348566473,1736621451661,-500.0,0.00010986,2]
[348566474,1736621451671,-500.0,0.00010986,2]
[348566475,1736621451681,-500.0,0.00010986,2]
[348566476,1736621451691,-500.0,0.00010986,2]
[348566477,1736621451701,-2095.06,0.00010986,2]
[348566478,1736621451711,-500.0,0.00010986,2]
[348566479,1736621451926,-500.0,0.00010986,2]
[348566480,1736621451936,-476.45,0.00010986,2]
[348566481,1736621451945,-540.14,0.00010986,2]
[348566482,1736621451955,-500.0,0.00010986,2]
[348566483,1736621451965,-1709.75,0.00010986,2]
[348566484,1736621451975,-574.62,0.00010986,2]
[348566485,1736621451985,-500.0,0.00010986,2]
[348566486,1736621451995,-500.0,0.00010986,2]
[348566487,1736621452005,-500.0,0.00010986,2]
[348566488,1736621452015,-500.0,0.00010986,2]
[348566489,1736621452024,-500.0,0.00010986,2]
[348566490,1736621452034,-538.38,0.00010986,2]
[348566491,1736621452043,-1294.9,0.00010986,2]
[348566492,1736621452052,-774.36,0.00010986,2]
[348566493,1736621452062,-500.0,0.00010986,2]
[348566494,1736621452071,-500.0,0.00010986,2]
[348566495,1736621452081,-500.0,0.00010986,2]
[348566496,1736621452090,-2156.01,0.00010986,2]
[348566497,1736621452100,-500.0,0.00010986,2]
[348566498,1736621452110,-192.06,0.00010986,2]
[348566499,1736621452119,-500.0,0.00010986,2]
[348566500,1736621452128,-500.0,0.00010986,2]
[348566501,1736621452138,-500.0,0.00010986,2]
[348566502,1736621452147,-500.0,0.00010986,2]
[348566503,1736621452157,-500.0,0.00010986,2]
[348566504,1736621452167,-500.0,0.00010986,2]
[348566505,1736621452176,-500.0,0.00010986,2]
[348566506,1736621452185,-500.0,0.00010986,2]
[348566507,1736621452195,-500.0,0.00010986,2]
[348566508,1736621452204,-300.06,0.00010986,2]
[348566509,1736621452214,-500.0,0.00010986,2]
[348566510,1736621452224,-500.0,0.00010986,2]
[348566511,1736621452234,-534.03,0.00010986,2]
[348566512,1736621452244,-500.0,0.00010986,2]
[348566513,1736621452254,-500.0,0.00010986,2]
[348566514,1736621452263,-500.0,0.00010986,2]
[348566515,1736621452273,-582.55,0.00010986,2]
[348566516,1736621452283,-500.0,0.00010986,2]
[348566517,1736621452292,-500.0,0.00010986,2]
[348566518,1736621452301,-500.0,0.00010986,2]
[348566519,1736621452311,-384.19283687,0.00010986,2]
[348566520,1736621452320,-500.0,0.00010986,2]
[348566521,1736621452329,-394.86,0.00010986,2]
[348566522,1736621452339,-626.08,0.00010986,2]
[348566523,1736621452349,-500.0,0.00010986,2]
[348566524,1736621452359,-500.0,0.00010986,2]
[348566525,1736621452369,-660.95,0.00010986,2]
[348566526,1736621452378,-500.0,0.00010986,2]
[348566527,1736621452387,-514.46,0.00010986,2]
[348566528,1736621452397,-500.0,0.00010986,2]
[348566529,1736621452406,-851.4,0.00010986,2]
[348566530,1736621452415,-915.78,0.00010986,2]
[348566531,1736621452425,-1015.76,0.00010986,2]
[348566532,1736621452435,-500.0,0.00010986,2]
[348566533,1736621452443,-955.24,0.00010987,2]
[348566534,1736621452453,-1983.29,0.00010987,2]
[348566535,1736621452463,-1036.51,0.00010987,2]
[348566536,1736621452472,-1442.19,0.00010987,2]
[348566537,1736621452482,-764.7,0.00010987,2]
[348566538,1736621452491,-972.09,0.00010987,2]
[348566539,1736621452501,-1327.99,0.00010987,2]
[348566540,1736621452510,-500.0,0.00010987,2]
[348566541,1736621452519,-516.86,0.00010987,2]
[348566542,1736621452529,-666.27,0.00010988,2]
[348566543,1736621452539,-652.94,0.00010988,2]
[348566544,1736621452548,-500.0,0.00010989,2]
[348566545,1736621452557,-554.02,0.00010989,2]
[348566546,1736621452566,-500.0,0.00010989,2]
[348566547,1736621452576,-1015.29,0.00010989,2]
[348566548,1736621452585,-626.6,0.00010989,2]
[348566549,1736621452595,-1565.13,0.00010989,2]
[348566550,1736621452604,-858.25,0.00010989,2]
[348566551,1736621452613,-1345.22,0.00010989,2]
[348566552,1736621452623,-1795.38,0.00010989,2]
[348566553,1736621452632,-6450.46,0.00010989,2]
[348566554,1736621452641,-1396.58,0.00010989,2]
[348566555,1736621452650,-500.0,0.00010989,2]
[348566556,1736621452660,-1462.1,0.00010989,2]
[348566557,1736621452669,-682.76,0.00010989,2]
[348566558,1736621452679,-1096.56,0.00010989,2]
[348566559,1736621452688,-500.0,0.00010989,2]
[348566560,1736621452697,-1358.89,0.00010989,2]
[348566561,1736621452707,-500.0,0.00010989,2]
[348566562,1736621452717,-1047.52,0.00010989,2]
[348566563,1736621452728,-155.996627,0.00010992,2]
[348566564,1736621452739,-151.423521,0.00010992,2]
[348566565,1736621452748,-155.996627,0.00010993,2]
[348566566,1736621452758,-151.423521,0.00011095,2]
[348566567,1736621452767,-500.0,0.00011096,2]
[348566568,1736621452778,-3869.42218955,0.00011099,2]
[348566569,1736621452787,-3869.42218947,0.00011099,2]
[348566570,1736621452797,-3869.42218947,0.00011099,2]
[348566571,1736621452807,-3869.42218947,0.00011099,2]
[348566572,1736621452817,-3156.05806214,0.00011099,2]
[348566573,1736621453064,-506.51,0.00011099,2]
[348566574,1736621453078,-206.85412733,0.00011099,2]
[348566575,1736621453089,-759.14587301,0.00011239,2]
[348566576,1736621453100,-706.10326874,0.00011239,2]
[348566577,1736621453111,-2404.17304772,0.00011239,2]
[348566578,1736621453120,-155.996627,0.00011258,2]
[348566579,1736621453130,-151.423521,0.00011258,2]
[348566580,1736621453139,-1718.37,0.00011258,2]
[348566581,1736621453149,-2818.84,0.00011258,2]
[348566582,1736621453158,-1639.4,0.00011258,2]
[348566583,1736621453167,-500.0,0.00011258,2]
[348566584,1736621453177,-736.0,0.00011258,2]
[348566585,1736621453187,-2029.26,0.00011258,2]
[348566586,1736621453196,-724.79,0.00011258,2]
[348566587,1736621453207,-978.23,0.00011258,2]
[348566588,1736621453216,-532.82,0.00011258,2]
[348566589,1736621453226,-210.49680428,0.00011258,2]
[348566590,1736621453238,-100.40319572,0.00011258,2]
[348566591,1736621453248,-577.29,0.00011258,2]
[348566592,1736621453258,-168.1902257,0.00011258,2]
[348566593,1736621453534,-627.91,0.00010163,2]
[348566594,1736621453544,-331.8097743,0.00011258,2]
[348566595,1736621453555,-1827.43,0.00011258,2]
[348566596,1736621453564,-500.0,0.00011258,2]
[348566597,1736621453573,-500.0,0.00011258,2]
[348566598,1736621453583,-1230.85,0.00011258,2]
[348566599,1736621453592,-500.0,0.00011259,2]
[348566600,1736621453602,-500.0,0.00011259,2]
[348566601,1736621453612,-547.0,0.00011259,2]
[348566602,1736621453622,-500.0,0.00011259,2]
[348566603,1736621453631,-500.0,0.00011259,2]
[348566604,1736621453640,-500.0,0.00011259,2]
[348566605,1736621453649,-500.0,0.00011259,2]
[348566606,1736621453658,-500.0,0.00011259,2]
[348566607,1736621453667,-500.0,0.00011259,2]
[348566608,1736621453677,-500.0,0.00011259,2]
[348566609,1736621453686,-500.0,0.00011259,2]
[348566610,1736621453696,-593.18,0.00011259,2]
[348566611,1736621453705,-500.0,0.00011259,2]
[348566612,1736621453715,-532.45,0.00011259,2]
[348566613,1736621453725,-578.67,0.00011259,2]
[348566614,1736621453737,-594.42,0.00011259,2]
[348566615,1736621453746,-500.0,0.00011259,2]
[348566616,1736621453756,-500.0,0.00011259,2]
[348566617,1736621453765,-500.0,0.00011259,2]
[348566618,1736621453774,-519.49,0.00011259,2]
[348566619,1736621453784,-500.0,0.00011259,2]
[348566620,1736621453793,-500.0,0.00011259,2]
[348566621,1736621453805,-500.0,0.00011259,2]
[348566622,1736621453816,-382.90336473,0.00011259,2]
[348566623,1736621453834,-117.09663527,0.00011259,2]
[348566624,1736621453843,-500.0,0.00011259,2]
[348566625,1736621453852,-500.0,0.00011259,2]
[348566626,1736621453862,-530.84,0.00011259,2]
[348566627,1736621453871,-500.0,0.00011259,2]
[348566628,1736621453880,-500.0,0.00011259,2]
[348566629,1736621453892,-500.0,0.00011259,2]
[348566630,1736621453902,-500.0,0.00011259,2]
[348566631,1736621453912,-500.0,0.00011259,2]
[348566632,1736621453921,-500.0,0.00011259,2]
[348566633,1736621453931,-500.0,0.00011259,2]
[348566634,1736621453940,-168.17315377,0.00011259,2]
[348566635,1736621453951,-500.0,0.00011259,2]
[348566636,1736621453962,-500.0,0.00011259,2]
[348566637,1736621453971,-500.0,0.00011259,2]
[348566638,1736621453981,-500.0,0.00011259,2]
[348566639,1736621453990,-895.48,0.00011259,2]
[348566640,1736621454000,-500.0,0.00011259,2]
[348566641,1736621454009,-1337.41021096,0.00011259,2]
[348566642,1736621454021,-113.44978904,0.00011259,2]
[348566643,1736621454031,-4290.62,0.00011259,2]
[348566644,1736621454040,-500.0,0.00011259,2]
[348566645,1736621454049,-995.86,0.00011259,2]
[348566646,1736621454059,-500.0,0.00011259,2]
[348566647,1736621454116,-500.0,0.00011259,2]
[348566648,1736621454126,-500.0,0.00011259,2]
[348566649,1736621454135,-500.0,0.00011259,2]
[348566650,1736621454144,-783.11,0.00011259,2]
[348566651,1736621454153,-500.0,0.00011259,2]
[348566652,1736621454162,-2256.78,0.00011259,2]
[348566653,1736621454171,-500.0,0.00011259,2]
[348566654,1736621454180,-2102.59,0.00011259,2]
[348566655,1736621454189,-500.0,0.00011259,2]
[348566656,1736621454198,-500.0,0.00011259,2]
[348566657,1736621454207,-500.0,0.00011259,2]
[348566658,1736621454218,-500.0,0.00011259,2]
[348566659,1736621454227,-248.22,0.00011259,2]
[348566660,1736621454238,-500.0,0.00011259,2]
[348566661,1736621454249,-2192.98,0.00011259,2]
[348566662,1736621454259,-500.0,0.00011259,2]
[348566663,1736621454268,-1538.91,0.00011259,2]
[348566664,1736621454278,-753.15,0.00011259,2]
[348566665,1736621454289,-169.25,0.00011259,2]
[348566666,1736621454299,-500.0,0.00011259,2]
[348566667,1736621454310,-500.0,0.00011259,2]
[348566668,1736621454320,-500.0,0.00011259,2]
[348566669,1736621454331,-500.0,0.00011259,2]
[348566670,1736621454340,-500.0,0.00011259,2]
[348566671,1736621454350,-1520.67,0.00011259,2]
[348566672,1736621454361,-500.0,0.00011259,2]
[348566673,1736621454371,-500.0,0.00011259,2]
[348566674,1736621454381,-500.0,0.00011259,2]
[348566675,1736621454392,-1088.08,0.00011259,2]
[348566676,1736621454403,-500.0,0.00011259,2]
[348566677,1736621454413,-500.0,0.00011259,2]
[348566678,1736621454423,-500.0,0.00011259,2]
[348566679,1736621454433,-500.0,0.00011259,2]
[348566680,1736621454443,-500.0,0.00011259,2]
[348566681,1736621454454,-500.0,0.00011259,2]
[348566682,1736621454463,-500.0,0.00011259,2]
[348566683,1736621454472,-813.04,0.00011259,2]
[348566684,1736621454482,-500.0,0.00011259,2]
[348566685,1736621454493,-500.0,0.00011259,2]
[348566686,1736621454503,-500.0,0.00011259,2]
[348566687,1736621454515,-500.0,0.00011259,2]
[348566688,1736621454524,-500.0,0.00011259,2]
[348566689,1736621454535,-500.0,0.00011259,2]
[348566690,1736621454546,-500.0,0.00011259,2]
[348566691,1736621454557,-500.0,0.00011259,2]
[348566692,1736621454567,-500.0,0.00011259,2]
[348566693,1736621454580,-500.0,0.00011259,2]
[348566694,1736621454590,-500.0,0.00011259,2]
[348566695,1736621454601,-500.0,0.00011259,2]
[348566696,1736621454611,-500.0,0.00011259,2]
[348566697,1736621454622,-500.0,0.00011259,2]
[348566698,1736621454632,-500.0,0.00011259,2]
[348566699,1736621454642,-500.0,0.00011259,2]
[348566700,1736621454651,-500.0,0.00011259,2]
[348566701,1736621454661,-500.0,0.0001126,2]
[348566702,1736621454670,-636.08,0.0001126,2]
[348566703,1736621454679,-750.15567526,0.0001126,2]
[348566704,1736621454691,-103.09432474,0.0001126,2]
[348566705,1736621454701,-1981.72,0.0001126,2]
[348566706,1736621454711,-583.2,0.0001126,2]
[348566707,1736621454720,-500.0,0.0001126,2]
[348566708,1736621454733,-2219.66,0.0001126,2]
[348566709,1736621454743,-529.66,0.0001126,2]
[348566710,1736621454752,-500.0,0.0001126,2]
[348566711,1736621454761,-715.56,0.0001126,2]
[348566712,1736621454771,-908.13,0.0001126,2]